bitfinex/quotes_SOLUSD_20241125
["timestamp","ask_amount","ask_price","bid_price","bid_amount"]
[1732553374447,15.4659,241.91,241.79,17.9858058]
[1732553374741,17.7348258,241.9,241.83,17.7348258]
[1732553374944,17.7348258,241.88,241.82,23.776884]
[1732553375123,17.7348258,241.87,241.8,17.7348258]
[1732553375440,17.7348258,241.89,241.82,17.7348258]
[1732553375616,17.7348258,241.88,241.8,17.7348258]
[1732553375945,17.7348258,241.85,241.77,41.5117098]
[1732553376121,11.5746,241.91,241.75,23.776884]
[1732553376327,0.25098,241.9,241.69,4.1375]
[1732553376528,0.25098,241.9,241.68,10.3441]
[1732553376529,11.5754,241.89,241.68,10.3441]
[1732553376845,0.12549,241.86,241.66,4.138]
[1732553377254,17.7348258,241.75,241.67,17.7348258]
[1732553377554,17.7348258,241.78,241.71,17.7348258]
[1732553377749,17.7348258,241.79,241.72,17.7348258]
[1732553377955,17.7348258,241.78,241.71,17.7348258]
[1732553378653,17.7348258,241.83,241.75,17.7348258]
[1732553378948,17.7348258,241.83,241.76,17.7348258]
[1732553379125,3.3076,241.86,241.75,23.776884]
[1732553379126,17.7348258,241.81,241.75,23.776884]
[1732553379328,17.7348258,241.8,241.73,17.7348258]
[1732553379641,17.7348258,241.82,241.74,21.8714258]
[1732553379839,17.7348258,241.82,241.76,17.7348258]
[1732553380056,17.7348258,241.84,241.76,17.7348258]
[1732553380257,17.7348258,241.85,241.77,17.7348258]
[1732553380454,17.7348258,241.88,241.81,17.7348258]
[1732553381530,17.7348258,241.91,241.84,17.7348258]
[1732553381729,17.7348258,241.92,241.85,17.7348258]
[1732553381955,17.7348258,241.94,241.86,17.7348258]
[1732553382146,17.7348258,241.95,241.88,17.7348258]
[1732553382345,17.7348258,241.94,241.86,17.7348258]
[1732553382658,17.7348258,241.92,241.84,17.7348258]
[1732553382961,17.7348258,241.89,241.82,17.7348258]
[1732553383261,11.5711,241.98,241.82,0.12549]
[1732553383262,17.7348258,241.88,241.82,0.12549]
[1732553383449,11.5711,241.98,241.86,17.7348258]
[1732553383758,17.7348258,241.93,241.85,17.7348258]
[1732553384058,17.7348258,241.94,241.86,17.7348258]
[1732553384944,17.7348258,241.94,241.82,0.12549]
[1732553385149,17.7348258,241.91,241.84,23.902374]
[1732553385756,21.0418258,241.91,241.84,17.8603158]
[1732553386141,21.0418258,241.91,241.82,17.7348258]
[1732553386349,17.7348258,241.85,241.77,17.7348258]
[1732553386546,17.7348258,241.82,241.74,17.7348258]
[1732553386752,17.7348258,241.82,241.73,24.63]
[1732553386753,17.7348258,241.82,241.75,17.7348258]
[1732553387447,17.7348258,241.82,241.73,24.63]
[1732553387448,8.2675,241.91,241.77,17.7348258]
[1732553387638,17.7348258,241.84,241.77,17.7348258]
[1732553388579,17.7348258,241.82,241.75,17.7348258]
[1732553388750,17.7348258,241.8,241.74,23.902374]
[1732553388949,17.7348258,241.8,241.73,17.145]
[1732553389161,17.7348258,241.78,241.71,4.137]
[1732553389568,17.7348258,241.78,241.7,17.7348258]
[1732553389741,17.7348258,241.8,241.72,17.7348258]
[1732553390064,17.7348258,241.82,241.74,17.7348258]
[1732553390566,17.7348258,241.82,241.75,23.902374]
[1732553391436,21.0430258,241.82,241.75,23.902374]
[1732553392464,17.7348258,241.8,241.72,17.7348258]
[1732553392652,17.7348258,241.8,241.74,0.12549]
[1732553392858,21.0430258,241.82,241.74,17.8603158]
[1732553393059,17.7348258,241.82,241.76,0.12549]
[1732553393440,17.7348258,241.86,241.78,17.7348258]
[1732553393643,17.7348258,241.88,241.81,0.12549]
[1732553393946,17.7348258,241.88,241.81,23.902374]
[1732553394158,17.7348258,241.86,241.78,17.7348258]
[1732553394352,17.7348258,241.84,241.79,23.776884]
[1732553394652,11.08049333,241.85,241.77,34.98286733]
[1732553395061,11.08049333,241.85,241.78,0.12549]
[1732553395245,11.08049333,241.87,241.79,11.08049333]
[1732553395642,11.08049333,241.87,241.81,0.12549]
[1732553395843,11.08049333,241.85,241.78,23.776884]
[1732553396076,11.08049333,241.85,241.77,4.1359]
[1732553396077,11.08049333,241.82,241.73,11.08049333]
[1732553396367,11.08049333,241.8,241.73,11.08049333]
[1732553396541,11.08049333,241.8,241.71,11.08049333]
[1732553397061,11.08049333,241.8,241.73,11.08049333]
[1732553398165,11.08049333,241.8,241.74,23.902374]
[1732553398376,14.38899333,241.8,241.74,23.902374]
[1732553398745,11.08049333,241.8,241.74,23.902374]
[1732553399844,11.08049333,241.82,241.74,23.902374]
[1732553400459,11.08049333,241.82,241.75,11.08049333]
[1732553400769,11.08049333,241.9,241.81,11.08049333]
[1732553401247,11.08049333,241.86,241.79,11.08049333]
[1732553401779,14.38819333,241.86,241.79,23.902374]
[1732553401946,14.38819333,241.86,241.77,11.08049333]
[1732553401947,11.08049333,241.84,241.77,11.08049333]
[1732553402266,14.38819333,241.86,241.78,23.776884]
[1732553402577,11.08049333,241.84,241.77,23.902374]
[1732553403575,11.08049333,241.86,241.78,11.08049333]
[1732553403742,11.08049333,241.86,241.79,23.902374]
[1732553404166,11.08049333,241.84,241.79,0.12549]
[1732553404372,3.3075,241.87,241.75,23.776884]
[1732553404373,11.08049333,241.82,241.75,23.776884]
[1732553404763,11.08049333,241.82,241.74,15.21709333]
[1732553405447,11.5764,241.87,241.72,11.08049333]
[1732553405448,3.3083,241.81,241.72,11.08049333]
[1732553405647,11.08049333,241.78,241.7,11.08049333]
[1732553405871,11.08049333,241.77,241.69,15.21799333]
[1732553406057,11.08049333,241.71,241.63,15.21899333]
[1732553406243,11.08049333,241.69,241.63,4.1385]
[1732553406443,11.08049333,241.69,241.61,11.08049333]
[1732553406667,11.08049333,241.69,241.61,15.21919333]
[1732553407685,11.08049333,241.69,241.62,23.902374]
[1732553408455,11.08049333,241.67,241.6,4.139]
[1732553408963,11.08049333,241.67,241.54,28.374]
[1732553408964,11.08049333,241.63,241.55,11.08049333]
[1732553409175,11.08049333,241.61,241.55,4.1399]
[1732553409479,11.08049333,241.61,241.53,4.1401]
[1732553409783,11.08049333,241.59,241.51,15.22089333]
[1732553410273,17.76897239,241.58,241.52,0.12549]
[1732553410474,17.76897239,241.58,241.51,4.1404]
[1732553410680,17.76897239,241.63,241.56,17.76897239]
[1732553410871,17.76897239,241.68,241.59,17.76897239]
[1732553411075,24.3511,241.73,241.56,20.0]
[1732553411377,24.3511,241.73,241.64,17.76897239]
[1732553411378,17.76897239,241.71,241.64,17.76897239]
[1732553411567,21.07867239,241.71,241.62,17.76897239]
[1732553411758,21.07867239,241.71,241.55,10.3495]
[1732553411759,17.76897239,241.63,241.54,17.76897239]
[1732553412151,17.76897239,241.63,241.55,0.12549]
[1732553412386,17.76897239,241.61,241.55,0.12549]
[1732553412752,17.76897239,241.63,241.56,21.90867239]
[1732553412948,17.76897239,241.65,241.57,23.902374]
[1732553413151,17.76897239,241.65,241.55,0.12549]
[1732553413152,17.76897239,241.63,241.54,17.76897239]
[1732553413382,17.76897239,241.68,241.54,17.76897239]
[1732553413383,17.76897239,241.61,241.54,17.76897239]
[1732553413671,17.76897239,241.61,241.52,21.90937239]
[1732553413847,17.76897239,241.59,241.52,21.90937239]
[1732553414468,17.76897239,241.68,241.52,21.90937239]
[1732553414469,17.76897239,241.61,241.52,21.90937239]
[1732553414874,21.07957239,241.65,241.56,17.76897239]
[1732553415069,17.76897239,241.63,241.54,17.76897239]
[1732553415292,17.76897239,241.6,241.52,17.76897239]
[1732553415500,17.76897239,241.6,241.54,0.12549]
[1732553415992,17.76897239,241.6,241.53,4.1402]
[1732553416197,17.76897239,241.56,241.5,17.76897239]
[1732553416402,17.76897239,241.57,241.49,21.90987239]
[1732553416879,17.76897239,241.51,241.43,0.4879756]
[1732553417085,17.76897239,241.49,241.43,0.4879756]
[1732553417383,17.76897239,241.5,241.43,0.4879756]
[1732553418087,17.76897239,241.54,241.47,17.76897239]
[1732553418278,17.76897239,241.51,241.43,18.25694799]
[1732553418480,17.76897239,241.53,241.45,17.76897239]
[1732553419978,21.08117239,241.53,241.45,17.76897239]
[1732553421209,17.76897239,241.53,241.45,21.91057239]
[1732553422208,21.08117239,241.53,241.45,21.91057239]
[1732553423103,17.76897239,241.5,241.43,18.25694799]
[1732553423479,17.76897239,241.5,241.43,22.39884799]
[1732553423777,17.76897239,241.51,241.43,18.25694799]
[1732553423978,17.76897239,241.54,241.47,17.76897239]
[1732553424194,17.76897239,241.56,241.48,17.76897239]
[1732553424680,17.76897239,241.58,241.51,17.76897239]
[1732553425285,17.76897239,241.6,241.51,17.76897239]
[1732553426003,17.76897239,241.58,241.51,17.76897239]
[1732553426205,17.76897239,241.56,241.47,36.44407239]
[1732553426507,17.76897239,241.56,241.47,21.91007239]
[1732553426801,17.76897239,241.58,241.51,17.76897239]
[1732553427703,17.76897239,241.6,241.51,17.76897239]
[1732553427893,17.76897239,241.6,241.47,14.4943]
[1732553427894,17.76897239,241.6,241.53,17.76897239]
[1732553428707,17.76897239,241.6,241.53,21.90917239]
[1732553429301,17.76897239,241.64,241.55,17.76897239]
[1732553429481,17.76897239,241.64,241.57,17.76897239]
[1732553429680,17.76897239,241.66,241.59,17.76897239]
[1732553430304,16.9254,241.74,241.65,17.76897239]
[1732553430482,7.322,241.76,241.7,17.76897239]
[1732553430682,21.07757239,241.8,241.73,17.76897239]
[1732553430898,17.76897239,241.84,241.68,24.027864]
[1732553431099,3.3076,241.86,241.68,23.902374]
[1732553431412,3.3076,241.86,241.67,17.3117]
[1732553431413,17.76897239,241.73,241.67,17.3117]
[1732553431717,17.76897239,241.73,241.61,6.8507]
[1732553431718,17.76897239,241.69,241.61,43.22807239]
[1732553432004,17.76897239,241.65,241.57,17.76897239]
[1732553433095,17.76897239,241.7,241.62,17.76897239]
[1732553433487,7.1276,241.75,241.66,17.76897239]
[1732553433488,17.76897239,241.74,241.66,17.76897239]
[1732553433687,21.07837239,241.74,241.66,17.76897239]
[1732553433985,17.76897239,241.69,241.61,17.76897239]
[1732553434306,3.3093,241.74,241.57,17.76897239]
[1732553434307,17.76897239,241.63,241.57,17.76897239]
[1732553434494,17.76897239,241.65,241.57,17.76897239]
[1732553434691,17.76897239,241.67,241.59,17.76897239]
[1732553435090,17.76897239,241.65,241.57,17.76897239]
[1732553435291,17.76897239,241.65,241.54,16.9854]
[1732553435292,17.76897239,241.65,241.59,17.76897239]
[1732553435602,17.76897239,241.69,241.61,17.76897239]
[1732553435982,17.76897239,241.71,241.63,17.76897239]
[1732553436383,17.76897239,241.73,241.65,17.76897239]
[1732553436784,28.20577239,241.75,241.67,17.76897239]
[1732553437011,25.10097239,241.81,241.73,17.76897239]
[1732553437185,17.76897239,241.83,241.75,17.76897239]
[1732553437386,17.76897239,241.85,241.77,17.76897239]
[1732553437586,17.76897239,241.87,241.79,17.76897239]
[1732553437881,17.76897239,241.81,241.71,17.76897239]
[1732553438101,17.76897239,241.79,241.71,17.76897239]
[1732553438493,17.76897239,241.81,241.73,17.76897239]
[1732553438910,21.07717239,241.83,241.75,17.76897239]
[1732553439113,17.76897239,241.85,241.77,17.76897239]
[1732553439613,17.76897239,241.89,241.81,17.76897239]
[1732553439793,17.76897239,241.91,241.83,17.76897239]
[1732553441205,17.76897239,241.91,241.76,10.3404]
[1732553441414,17.76897239,241.99,241.89,17.76897239]
[1732553441616,24.97277239,242.03,241.95,17.76897239]
[1732553441798,17.76897239,242.03,241.95,17.76897239]
[1732553442109,17.5033,242.06,241.84,10.12549]
[1732553442110,17.76897239,242.01,241.93,17.76897239]
[1732553442884,3.3054,242.03,241.84,0.12549]
[1732553442885,21.07437239,242.03,241.95,17.76897239]
[1732553443083,17.76897239,242.03,241.96,23.776884]
[1732553443411,3.3051,242.05,241.98,17.76897239]
[1732553443619,3.3048,242.07,242.0,17.76897239]
[1732553443998,17.76897239,242.01,241.92,0.12549]
[1732553444186,17.76897239,241.99,241.92,17.76897239]
[1732553444395,17.76897239,241.97,241.88,17.76897239]
[1732553444694,17.76897239,241.93,241.84,24.61747239]
[1732553445197,3.3068,241.92,241.84,24.61747239]
[1732553445392,17.76897239,241.97,241.88,17.76897239]
[1732553445593,21.07497239,241.99,241.92,17.76897239]
[1732553445822,21.07497239,241.99,241.9,17.76897239]
[1732553446114,17.76897239,241.97,241.89,23.902374]
[1732553446302,17.76897239,241.97,241.9,17.76897239]
[1732553447289,17.76897239,241.97,241.91,23.776884]
[1732553447620,8.2634,242.04,241.91,23.776884]
[1732553447793,6.5546,242.07,241.91,23.776884]
[1732553447794,17.76897239,242.05,241.96,17.76897239]
[1732553447999,17.76897239,242.05,241.98,17.76897239]
[1732553448220,17.76897239,242.05,241.96,17.76897239]
[1732553448529,17.76897239,242.05,241.91,4.1337]
[1732553448530,17.76897239,242.05,241.98,17.76897239]
[1732553448699,3.3052,242.04,241.98,17.76897239]
[1732553449023,17.76897239,242.01,241.94,17.76897239]
[1732553449192,17.76897239,242.01,241.92,17.76897239]
[1732553449394,17.76897239,242.01,241.93,23.776884]
[1732553449618,17.76897239,242.01,241.94,17.76897239]
[1732553450123,3.3057,242.0,241.95,17.76897239]
[1732553450420,21.07467239,242.0,241.93,23.776884]
[1732553451018,3.3057,242.0,241.94,17.76897239]
[1732553451811,17.76897239,241.95,241.83,17.6714]
[1732553452015,17.76897239,241.91,241.83,35.44037239]
[1732553452218,17.76897239,241.89,241.83,17.6714]
[1732553452729,17.76897239,241.89,241.81,17.76897239]
[1732553453718,10.0,242.01,241.79,4.1357]
[1732553453719,17.76897239,241.91,241.83,17.76897239]
[1732553453915,0.12549,242.0,241.81,17.76897239]
[1732553453916,17.76897239,241.89,241.81,17.76897239]
[1732553454120,17.76897239,241.89,241.82,23.776884]
[1732553454523,3.3071,241.9,241.83,17.76897239]
[1732553454836,17.76897239,241.89,241.82,23.776884]
[1732553455903,3.3069,241.92,241.85,17.76897239]
[1732553456204,21.07587239,241.92,241.86,23.776884]
[1732553456614,17.76897239,241.9,241.83,17.76897239]
[1732553457021,17.76897239,241.92,241.85,17.76897239]
[1732553457536,17.76897239,241.92,241.84,23.776884]
[1732553459126,33.07469,242.0,241.88,0.12549]
[1732553459127,17.76897239,241.94,241.88,0.12549]
[1732553459316,17.76897239,241.97,241.89,17.76897239]
[1732553459520,17.76897239,241.97,241.9,23.776884]
[1732553459817,17.76897239,241.95,241.85,17.76897239]
[1732553460023,17.76897239,241.93,241.86,23.776884]
[1732553460532,17.76897239,241.91,241.84,23.902374]
[1732553460840,17.76897239,241.93,241.86,23.776884]
[1732553461209,3.3068,241.92,241.86,23.776884]
[1732553461828,17.76897239,242.04,241.88,23.776884]
[1732553461829,17.76897239,241.95,241.88,23.776884]
[1732553462131,21.07547239,241.95,241.88,23.776884]
[1732553462334,21.07547239,241.95,241.89,0.12549]
[1732553462631,17.76897239,241.95,241.89,0.12549]
[1732553463541,3.3063,241.96,241.91,23.776884]
[1732553463838,3.3063,241.96,241.85,23.902374]
[1732553463839,17.76897239,241.93,241.85,23.902374]
[1732553464016,17.76897239,241.91,241.84,17.76897239]
[1732553464211,11.5721,241.96,241.82,17.76897239]
[1732553464212,17.76897239,241.89,241.82,17.76897239]
[1732553464553,17.76897239,241.89,241.8,17.76897239]
[1732553464715,17.76897239,241.89,241.86,1.1057446]
[1732553465536,21.07627239,241.89,241.86,1.1057446]
[1732553466146,3.3069,241.92,241.87,23.776884]
[1732553467544,16.5291,242.0,241.9,17.76897239]
[1732553467545,17.76897239,241.98,241.9,17.76897239]
[1732553467843,17.76897239,242.02,241.94,17.76897239]
[1732553468052,17.76897239,241.98,241.9,17.76897239]
[1732553468421,17.76897239,241.98,241.91,23.776884]
[1732553468742,17.76897239,241.96,241.88,17.76897239]
[1732553469052,17.76897239,241.96,241.86,1.1057446]
[1732553469053,17.76897239,241.94,241.87,23.776884]
[1732553469745,17.76897239,241.98,241.9,17.76897239]
[1732553469927,17.7915,242.06,241.94,17.76897239]
[1732553470123,17.76897239,242.03,241.96,17.76897239]
[1732553470525,3.3051,242.05,241.99,23.776884]
[1732553470956,21.07407239,242.05,241.99,23.776884]
[1732553471318,17.76897239,242.01,241.94,23.776884]
[1732553472044,3.3057,242.0,241.94,23.776884]
[1732553472245,17.76897239,241.97,241.89,34.67187239]
[1732553472427,17.76897239,241.97,241.91,17.76897239]
[1732553472626,17.76897239,241.99,241.91,17.76897239]
[1732553473633,17.76897239,241.99,241.92,23.776884]
[1732553473831,3.3057,242.0,241.94,23.776884]
[1732553474227,17.76897239,241.99,241.94,23.776884]
[1732553474422,17.76897239,241.99,241.93,17.89446239]
[1732553474730,21.07457239,242.02,241.95,23.776884]
[1732553475243,17.76897239,242.0,241.92,17.76897239]
[1732553475635,17.76897239,241.98,241.89,38.80587239]
[1732553475841,17.76897239,241.96,241.89,34.67187239]
[1732553476321,17.76897239,241.96,241.9,23.776884]
[1732553476946,17.76897239,241.92,241.85,21.90357239]
[1732553477156,17.76897239,241.92,241.85,17.76897239]
[1732553477345,17.76897239,241.92,241.83,42.91327239]
[1732553477533,17.76897239,241.9,241.83,47.04827239]
[1732553477742,17.76897239,241.96,241.88,17.76897239]
[1732553478232,17.76897239,241.96,241.89,4.1341]
[1732553478630,21.07477239,242.0,241.92,17.76897239]
[1732553478825,21.07477239,242.0,241.93,23.776884]
[1732553479027,17.76897239,242.02,241.95,23.776884]
[1732553479225,17.76897239,242.04,241.97,23.776884]
[1732553479569,17.76897239,242.04,241.98,0.12549]
[1732553479851,17.76897239,242.04,241.97,23.776884]
[1732553480232,17.76897239,242.02,241.97,23.776884]
[1732553480649,3.3053,242.03,241.97,23.776884]
[1732553481456,3.3052,242.05,241.99,23.776884]
[1732553481751,17.76897239,242.06,241.99,23.776884]
[1732553482130,17.76897239,242.07,242.02,23.776884]
[1732553482330,17.76897239,242.07,241.99,41.54585639]
[1732553482642,17.76897239,242.07,242.0,4.1322]
[1732553482950,17.76897239,242.15,242.06,23.776884]
[1732553483154,17.76897239,242.13,242.09,23.776884]
[1732553483357,17.76897239,242.11,242.06,23.776884]
[1732553484033,3.3034,242.17,242.07,23.776884]
[1732553484034,17.76897239,242.15,242.07,23.776884]
[1732553484744,17.76897239,242.15,242.07,27.907784]
[1732553485291,17.76897239,242.13,242.06,23.776884]
[1732553485957,17.76897239,242.13,242.06,41.54585639]
[1732553486155,17.76897239,242.15,242.06,41.54585639]
[1732553486961,17.76897239,242.19,242.11,23.902374]
[1732553487255,3.3025,242.24,242.16,17.76897239]
[1732553487256,17.76897239,242.23,242.16,17.76897239]
[1732553487448,17.76897239,242.25,242.17,23.776884]
[1732553487633,21.07137239,242.25,242.17,23.776884]
[1732553487837,17.76897239,242.23,242.17,23.776884]
[1732553488164,17.76897239,242.21,242.15,23.776884]
[1732553488450,17.76897239,242.25,242.17,17.76897239]
[1732553488657,17.76897239,242.25,242.18,23.776884]
[1732553490042,17.76897239,242.23,242.16,23.776884]
[1732553490369,17.76897239,242.17,242.11,4.1302]
[1732553491664,17.76897239,242.19,242.12,23.776884]
[1732553492263,11.5577,242.26,242.12,23.776884]
[1732553492264,17.76897239,242.21,242.14,0.12549]
[1732553492437,17.76897239,242.23,242.16,23.902374]
[1732553492642,17.76897239,242.25,242.17,17.76897239]
[1732553492840,17.76897239,242.23,242.18,23.776884]
[1732553493155,17.76897239,242.27,242.2,23.776884]
[1732553493472,17.76897239,242.27,242.2,27.905584]
[1732553494045,0.4879756,242.29,242.2,27.905584]
[1732553494365,17.76897239,242.27,242.2,27.905584]
[1732553494941,18.25694799,242.29,242.21,0.12549]
[1732553495145,18.25694799,242.29,242.22,23.776884]
[1732553495340,18.25694799,242.29,242.25,17.76897239]
[1732553495341,0.4879756,242.29,242.25,17.76897239]
[1732553495649,0.4879756,242.29,242.28,23.776884]
[1732553496050,18.25694799,242.29,242.28,23.776884]
[1732553496356,0.4879756,242.29,242.28,23.776884]
[1732553496753,0.4879756,242.29,242.25,17.76897239]
[1732553497073,0.4879756,242.29,242.27,0.12549]
[1732553497275,0.4879756,242.29,242.26,23.776884]
[1732553497474,0.4879756,242.29,242.24,23.776884]
[1732553497651,0.4879756,242.29,242.25,17.89446239]
[1732553497972,0.4879756,242.29,242.26,23.776884]
[1732553498473,0.4879756,242.29,242.25,23.902374]
[1732553498952,0.4879756,242.29,242.25,41.67134639]
[1732553499369,0.4879756,242.29,242.26,4.1277]
[1732553499673,0.4879756,242.29,242.27,23.776884]
[1732553499869,0.4879756,242.29,242.28,0.12549]
[1732553501154,21.06917239,242.41,242.35,23.776884]
[1732553501155,17.76897239,242.41,242.35,23.776884]
[1732553501660,17.76897239,242.41,242.36,23.776884]
[1732553502755,17.76897239,242.41,242.36,4.126]
[1732553502964,17.76897239,242.38,242.31,17.76897239]
[1732553503173,17.76897239,242.36,242.27,21.89657239]
[1732553504156,17.76897239,242.36,242.28,23.902374]
[1732553504352,17.76897239,242.36,242.3,23.776884]
[1732553505172,17.76897239,242.38,242.3,23.776884]
[1732553505365,17.76897239,242.4,242.3,23.776884]
[1732553505566,17.76897239,242.4,242.32,23.776884]
[1732553506071,17.76897239,242.4,242.34,23.776884]
[1732553506267,17.76897239,242.42,242.34,23.776884]
[1732553506468,17.76897239,242.42,242.35,17.76897239]
[1732553506678,17.76897239,242.42,242.36,23.776884]
[1732553507664,21.06897239,242.42,242.35,27.903084]
[1732553507861,21.06897239,242.42,242.35,23.776884]
[1732553508062,17.76897239,242.42,242.34,23.776884]
[1732553508275,17.76897239,242.44,242.36,23.776884]
[1732553509382,17.76897239,242.44,242.37,4.1259]
[1732553509587,17.76897239,242.44,242.38,23.776884]
[1732553510791,10.1248,242.49,242.39,17.76897239]
[1732553510973,17.76897239,242.47,242.4,23.776884]
[1732553511481,21.06837239,242.47,242.4,27.902184]
[1732553511676,17.76897239,242.47,242.4,27.902184]
[1732553512076,8.7342756,242.54,242.42,23.776884]
[1732553512077,17.76897239,242.49,242.42,23.776884]
[1732553512688,17.76897239,242.45,242.38,23.776884]
[1732553513186,17.76897239,242.47,242.4,23.776884]
[1732553513369,17.76897239,242.51,242.43,17.76897239]
[1732553513573,17.76897239,242.51,242.44,23.776884]
[1732553514067,17.76897239,242.53,242.44,23.776884]
[1732553514979,17.76897239,242.53,242.46,23.776884]
[1732553516389,0.4879756,242.54,242.48,23.776884]
[1732553516903,0.4879756,242.54,242.48,27.900784]
[1732553517595,17.76897239,242.53,242.48,27.900784]
[1732553518167,17.76897239,242.51,242.44,23.776884]
[1732553518367,11.02192025,242.51,242.43,27.901784]
[1732553518580,11.02192025,242.47,242.38,11.02192025]
[1732553519070,11.02192025,242.45,242.39,4.1255]
[1732553519779,11.02192025,242.5,242.4,11.02192025]
[1732553519973,11.02192025,242.5,242.42,11.02192025]
[1732553520183,3.7863756,242.54,242.39,4.1255]
[1732553520184,11.02192025,242.48,242.39,4.1255]
[1732553520471,11.02192025,242.48,242.39,15.14742025]
[1732553520681,11.02192025,242.52,242.43,11.02192025]
[1732553520870,11.02192025,242.52,242.44,27.901584]
[1732553521982,11.02192025,242.52,242.46,23.776884]
[1732553522300,11.02192025,242.5,242.45,23.776884]
[1732553522471,11.02192025,242.48,242.43,23.776884]
[1732553522669,11.02192025,242.46,242.43,23.776884]
[1732553522999,11.02192025,242.44,242.37,4.1259]
[1732553523292,11.02192025,242.44,242.37,15.14782025]
[1732553523467,11.02192025,242.44,242.37,4.1259]
[1732553524103,11.02192025,242.38,242.34,17.9634]
[1732553524293,11.02192025,242.38,242.31,4.1269]
[1732553524601,11.02192025,242.42,242.34,11.02192025]
[1732553524784,11.02192025,242.44,242.36,11.02192025]
[1732553524975,11.02192025,242.44,242.37,4.1259]
[1732553525174,11.02192025,242.42,242.35,4.1261]
[1732553525489,11.02192025,242.4,242.35,4.1261]
[1732553525865,11.02192025,242.38,242.31,4.1269]
[1732553526469,17.65143473,242.39,242.31,21.77833473]
[1732553527196,17.65143473,242.41,242.33,17.65143473]
[1732553527395,17.65143473,242.39,242.34,23.776884]
[1732553527575,17.65143473,242.39,242.32,23.776884]
[1732553528084,17.65143473,242.39,242.31,21.77833473]
[1732553528408,17.65143473,242.37,242.31,4.1269]
[1732553528696,17.65143473,242.39,242.31,21.77833473]
[1732553529603,17.65143473,242.39,242.32,23.776884]
[1732553530107,17.65143473,242.35,242.3,23.776884]
[1732553530681,17.65143473,242.37,242.3,23.776884]
[1732553531090,17.65143473,242.39,242.31,21.77833473]
[1732553531298,17.65143473,242.39,242.32,23.776884]
[1732553531487,17.65143473,242.41,242.34,23.776884]
[1732553531885,17.65143473,242.43,242.37,23.776884]
[1732553532881,17.65143473,242.39,242.32,17.65143473]
[1732553533083,17.65143473,242.41,242.33,23.776884]
[1732553533881,17.65143473,242.43,242.35,23.776884]
[1732553534801,17.65143473,242.43,242.34,17.65143473]
[1732553535005,17.65143473,242.43,242.36,4.126]
[1732553535193,17.65143473,242.41,242.37,23.776884]
[1732553535502,17.65143473,242.43,242.37,23.776884]
[1732553536290,17.65143473,242.41,242.37,23.776884]
[1732553536609,17.65143473,242.43,242.37,23.776884]
[1732553536816,17.65143473,242.43,242.38,23.776884]
[1732553538911,17.65143473,242.43,242.38,27.902584]
[1732553539089,17.65143473,242.45,242.38,27.902584]
[1732553539986,17.65143473,242.47,242.38,27.902584]
[1732553540192,17.65143473,242.49,242.43,23.776884]
[1732553540610,17.65143473,242.53,242.46,17.65143473]
[1732553540803,17.65143473,242.53,242.48,4.124]
[1732553541002,0.4879756,242.54,242.49,23.776884]
[1732553542994,0.4879756,242.54,242.51,23.776884]
[1732553545113,0.4879756,242.54,242.52,4.1233]
[1732553545374,0.4879756,242.54,242.53,23.776884]
[1732553546310,0.4879756,242.54,242.53,34.78601101]
[1732553550424,0.4879756,242.54,242.53,38.90921101]
[1732553551827,0.4879756,242.54,242.51,4.1234]
[1732553552126,0.4879756,242.54,242.48,4.124]
[1732553552299,0.4879756,242.54,242.48,14.4341]
[1732553552499,0.4879756,242.54,242.49,0.12549]
[1732553552717,0.4879756,242.54,242.51,0.12549]
[1732553553121,0.4879756,242.54,242.51,10.12549]
[1732553553324,21.85786026,242.72,242.59,23.776884]
[1732553553525,18.56186026,242.72,242.59,23.776884]
[1732553553705,11.00912701,242.7,242.64,23.776884]
[1732553554223,11.00912701,242.7,242.63,23.776884]
[1732553554402,11.00912701,242.71,242.63,11.00912701]
[1732553554600,11.00912701,242.71,242.64,23.776884]
[1732553554841,11.00912701,242.71,242.64,11.00912701]
[1732553555039,11.00912701,242.71,242.65,23.776884]
[1732553555524,11.00912701,242.74,242.69,23.776884]
[1732553555712,11.00912701,242.73,242.69,23.776884]
[1732553555901,11.00912701,242.73,242.68,23.776884]
[1732553557099,11.00912701,242.73,242.66,23.776884]
[1732553558026,11.00912701,242.73,242.68,23.776884]
[1732553558202,11.00912701,242.75,242.69,11.00912701]
[1732553558404,11.00912701,242.75,242.7,23.776884]
[1732553558800,11.00912701,242.77,242.7,23.776884]
[1732553559716,11.00912701,242.77,242.7,27.897084]
[1732553561025,0.4879756,242.78,242.74,11.00912701]
[1732553561214,0.4879756,242.78,242.77,23.776884]
[1732553561821,0.4879756,242.78,242.77,27.895984]
[1732553562924,0.4879756,242.78,242.75,27.896184]
[1732553563424,0.4879756,242.78,242.75,23.776884]